[Event "Titled Tuesday Blitz November 14 Early 2023"]
[White "Maect19"]
[Black "Panchenko, Dmitry"]
[BlackFideId "4169158"]
[WhiteElo "2310"]
[BlackElo "2741"]
[Result "0-1"]
[Round "3"]
[TimeControl "180+1"]
[Date "2023.11.14"]
[WhiteClock "0:00:03"]
[BlackClock "0:00:11"]
[Board "183"]

1. d4 {[%clk 0:03:00]}  d5 {[%clk 0:02:59]} 2. Nf3 {[%clk 0:03:00]}  Nf6 {[%clk 0:02:58]} 3. e3 {[%clk 0:03:00]}  c5 {[%clk 0:02:57]} 4. Bd3 {[%clk 0:02:59]}  Nc6 {[%clk 0:02:55]} 5. O-O {[%clk 0:02:59]}  Bg4 {[%clk 0:02:51]} 6. Nbd2 {[%clk 0:02:57]}  cxd4 {[%clk 0:02:50]} 7. exd4 {[%clk 0:02:45]}  Nxd4 {[%clk 0:02:47]} 8. c3 {[%clk 0:02:41]}  Nc6 {[%clk 0:02:43]} 9. Bb5 {[%clk 0:02:40]}  Bd7 {[%clk 0:02:33]} 10. Qa4 {[%clk 0:02:38]}  a6 {[%clk 0:02:32]} 11. Bxc6 {[%clk 0:02:33]}  Bxc6 {[%clk 0:02:32]} 12. Qb3 {[%clk 0:02:32]}  e6 {[%clk 0:02:30]} 13. Ne5 {[%clk 0:02:32]}  Bd6 {[%clk 0:02:27]} 14. Ndf3 {[%clk 0:02:31]}  O-O {[%clk 0:02:26]} 15. Bg5 {[%clk 0:02:31]}  Be7 {[%clk 0:02:13]} 16. Nd4 {[%clk 0:02:29]}  Qc7 {[%clk 0:02:11]} 17. Rfe1 {[%clk 0:02:13]}  h6 {[%clk 0:02:06]} 18. Bh4 {[%clk 0:02:09]}  Be8 {[%clk 0:01:54]} 19. Rac1 {[%clk 0:01:57]}  Ne4 {[%clk 0:01:51]} 20. Bxe7 {[%clk 0:01:48]}  Qxe7 {[%clk 0:01:52]} 21. f3 {[%clk 0:01:24]}  Nd6 {[%clk 0:01:42]} 22. Qb4 {[%clk 0:01:10]}  a5 {[%clk 0:01:16]} 23. Qa3 {[%clk 0:01:10]}  b5 {[%clk 0:01:12]} 24. b3 {[%clk 0:00:59]}  Qc7 {[%clk 0:01:07]} 25. Qb2 {[%clk 0:00:49]}  Qb6 {[%clk 0:01:04]} 26. Qf2 {[%clk 0:00:48]}  Rc8 {[%clk 0:01:00]} 27. Kh1 {[%clk 0:00:36]}  Qb7 {[%clk 0:00:52]} 28. Qg3 {[%clk 0:00:33]}  Qc7 {[%clk 0:00:39]} 29. Ng4 {[%clk 0:00:27]}  Kh8 {[%clk 0:00:37]} 30. Qh4 {[%clk 0:00:25]}  Qd8 {[%clk 0:00:35]} 31. Qh3 {[%clk 0:00:21]}  Kh7 {[%clk 0:00:26]} 32. Ne5 {[%clk 0:00:18]}  Qg5 {[%clk 0:00:23]} 33. g3 {[%clk 0:00:10]}  a4 {[%clk 0:00:19]} 34. b4 {[%clk 0:00:09]}  Kg8 {[%clk 0:00:13]} 35. f4 {[%clk 0:00:10]}  Qe7 {[%clk 0:00:12]} 36. f5 {[%clk 0:00:10]}  Ne4 {[%clk 0:00:12]} 37. fxe6 {[%clk 0:00:08]}  Nf2+ {[%clk 0:00:12]} 38. Kg2 {[%clk 0:00:06]}  Nxh3 {[%clk 0:00:13]} 39. exf7+ {[%clk 0:00:06]}  Bxf7 {[%clk 0:00:13]} 40. Nxf7 {[%clk 0:00:06]}  Qxf7 {[%clk 0:00:13]} 41. Kxh3 {[%clk 0:00:07]}  Qh5+ {[%clk 0:00:11]} 42. Kg2 {[%clk 0:00:07]}  Rf7 {[%clk 0:00:11]} 43. Re3 {[%clk 0:00:06]}  Rcf8 {[%clk 0:00:11]} 44. Rce1 {[%clk 0:00:03]}  Rf2+ {[%clk 0:00:11]} 0-1


[Site "https://www.chess.com"]

[Event "Titled Tuesday Blitz November 14 Early 2023"]
[White "Dushyant Sharma"]
[Black "Larina, Maria"]
[WhiteFideId "25065130"]
[BlackFideId "24113182"]
[WhiteElo "2535"]
[BlackElo "2297"]
[Result "1-0"]
[Round "3"]
[TimeControl "180+1"]
[Date "2023.11.14"]
[WhiteClock "0:00:40"]
[BlackClock "0:00:04"]
[Board "187"]

1. e4 {[%clk 0:02:58]}  c6 {[%clk 0:02:58]} 2. d4 {[%clk 0:02:56]}  d5 {[%clk 0:02:58]} 3. exd5 {[%clk 0:02:49]}  cxd5 {[%clk 0:02:59]} 4. c3 {[%clk 0:02:48]}  Nf6 {[%clk 0:02:56]} 5. Bd3 {[%clk 0:02:48]}  Bg4 {[%clk 0:02:52]} 6. Qb3 {[%clk 0:02:43]}  Qc7 {[%clk 0:02:48]} 7. Ne2 {[%clk 0:02:40]}  Nbd7 {[%clk 0:02:37]} 8. Bf4 {[%clk 0:02:38]}  Qb6 {[%clk 0:02:37]} 9. Qc2 {[%clk 0:02:33]}  e6 {[%clk 0:02:36]} 10. Nd2 {[%clk 0:02:29]}  Bd6 {[%clk 0:02:29]} 11. Bxd6 {[%clk 0:02:29]}  Qxd6 {[%clk 0:02:29]} 12. Ng3 {[%clk 0:02:30]}  e5 {[%clk 0:02:15]} 13. dxe5 {[%clk 0:02:28]}  Qxe5+ {[%clk 0:02:10]} 14. Kf1 {[%clk 0:02:29]}  O-O {[%clk 0:02:04]} 15. Re1 {[%clk 0:02:15]}  Qd6 {[%clk 0:02:00]} 16. h3 {[%clk 0:02:02]}  Be6 {[%clk 0:01:57]} 17. Kg1 {[%clk 0:02:00]}  Nc5 {[%clk 0:01:52]} 18. Kh2 {[%clk 0:01:59]}  Nxd3 {[%clk 0:01:51]} 19. Qxd3 {[%clk 0:02:00]}  Rad8 {[%clk 0:01:48]} 20. Nf3 {[%clk 0:01:58]}  Ne4 {[%clk 0:01:43]} 21. Nd4 {[%clk 0:01:54]}  Nxf2 {[%clk 0:01:39]} 22. Qf3 {[%clk 0:01:42]}  Nxh1 {[%clk 0:01:37]} 23. Kxh1 {[%clk 0:01:43]}  Rfe8 {[%clk 0:01:33]} 24. Re2 {[%clk 0:01:37]}  Bd7 {[%clk 0:01:28]} 25. Rf2 {[%clk 0:01:37]}  Rf8 {[%clk 0:01:21]} 26. Rd2 {[%clk 0:01:20]}  Be6 {[%clk 0:01:06]} 27. Nge2 {[%clk 0:01:10]}  a6 {[%clk 0:01:03]} 28. Nf4 {[%clk 0:01:10]}  Rde8 {[%clk 0:00:51]} 29. Rd1 {[%clk 0:01:08]}  b5 {[%clk 0:00:45]} 30. a3 {[%clk 0:01:09]}  h6 {[%clk 0:00:42]} 31. Rf1 {[%clk 0:01:09]}  Rd8 {[%clk 0:00:38]} 32. Re1 {[%clk 0:01:05]}  Rfe8 {[%clk 0:00:23]} 33. Rf1 {[%clk 0:01:04]}  Qc7 {[%clk 0:00:23]} 34. Nh5 {[%clk 0:01:03]}  Qe5 {[%clk 0:00:21]} 35. Nf4 {[%clk 0:01:02]}  Qe4 {[%clk 0:00:20]} 36. Qg3 {[%clk 0:01:02]}  Kh7 {[%clk 0:00:16]} 37. Re1 {[%clk 0:00:37]}  Qxe1+ {[%clk 0:00:05]} 38. Qxe1 {[%clk 0:00:37]}  Bxh3 {[%clk 0:00:05]} 39. Qg3 {[%clk 0:00:37]}  Be6 {[%clk 0:00:04]} 40. Nh5 {[%clk 0:00:37]}  g6 {[%clk 0:00:03]} 41. Nf6+ {[%clk 0:00:37]}  Kg7 {[%clk 0:00:04]} 42. Nxe8+ {[%clk 0:00:38]}  Rxe8 {[%clk 0:00:05]} 43. Nf3 {[%clk 0:00:39]}  Bf5 {[%clk 0:00:05]} 44. Nd4 {[%clk 0:00:38]}  Bd7 {[%clk 0:00:03]} 45. Qd6 {[%clk 0:00:38]}  Bc8 {[%clk 0:00:03]} 46. Qxd5 {[%clk 0:00:38]}  Re1+ {[%clk 0:00:04]} 47. Kh2 {[%clk 0:00:38]}  Be6 {[%clk 0:00:04]} 48. Nxe6+ {[%clk 0:00:38]}  fxe6 {[%clk 0:00:04]} 49. Qb7+ {[%clk 0:00:38]}  Kf6 {[%clk 0:00:05]} 50. Qxa6 {[%clk 0:00:38]}  Re5 {[%clk 0:00:05]} 51. Qb6 {[%clk 0:00:39]}  Rh5+ {[%clk 0:00:05]} 52. Kg3 {[%clk 0:00:39]}  Rg5+ {[%clk 0:00:05]} 53. Kf4 {[%clk 0:00:39]}  Rf5+ {[%clk 0:00:06]} 54. Ke3 {[%clk 0:00:39]}  Re5+ {[%clk 0:00:07]} 55. Kd2 {[%clk 0:00:39]}  Rd5+ {[%clk 0:00:07]} 56. Kc2 {[%clk 0:00:40]}  Rf5 {[%clk 0:00:07]} 57. Kb3 {[%clk 0:00:40]}  Rg5 {[%clk 0:00:07]} 58. Qc6 {[%clk 0:00:40]}  Rg4 {[%clk 0:00:04]} 59. Qxb5 {[%clk 0:00:40]} 1-0


[Site "https://www.chess.com"]

[Event "Titled Tuesday Blitz November 14 Early 2023"]
[White "SicilianPanzer"]
[Black "Bettalli, Francesco"]
[BlackFideId "2816453"]
[WhiteElo "2296"]
[BlackElo "2529"]
[Result "0-1"]
[Round "3"]
[TimeControl "180+1"]
[Date "2023.11.14"]
[WhiteClock "0:00:04"]
[BlackClock "0:00:53"]
[Board "188"]

1. e4 {[%clk 0:02:59]}  e5 {[%clk 0:02:59]} 2. Nf3 {[%clk 0:02:59]}  Nf6 {[%clk 0:02:59]} 3. Bc4 {[%clk 0:02:54]}  Bc5 {[%clk 0:02:59]} 4. d3 {[%clk 0:02:53]}  d6 {[%clk 0:02:59]} 5. c3 {[%clk 0:02:53]}  O-O {[%clk 0:02:58]} 6. O-O {[%clk 0:02:52]}  h6 {[%clk 0:02:59]} 7. Nbd2 {[%clk 0:02:49]}  Re8 {[%clk 0:02:59]} 8. h3 {[%clk 0:02:48]}  Nbd7 {[%clk 0:03:00]} 9. Re1 {[%clk 0:02:48]}  Nf8 {[%clk 0:03:00]} 10. Nf1 {[%clk 0:02:47]}  Ng6 {[%clk 0:03:01]} 11. Ng3 {[%clk 0:02:35]}  Nf4 {[%clk 0:02:59]} 12. d4 {[%clk 0:02:26]}  Bb6 {[%clk 0:02:58]} 13. dxe5 {[%clk 0:02:25]}  N6h5 {[%clk 0:02:31]} 14. exd6 {[%clk 0:02:19]}  Nxg3 {[%clk 0:02:26]} 15. Bxf4 {[%clk 0:02:18]}  Nxe4 {[%clk 0:02:26]} 16. Be3 {[%clk 0:02:15]}  Nxd6 {[%clk 0:02:22]} 17. Bxb6 {[%clk 0:01:57]}  axb6 {[%clk 0:02:23]} 18. Bb3 {[%clk 0:01:56]}  Rxe1+ {[%clk 0:02:19]} 19. Qxe1 {[%clk 0:01:55]}  Qf6 {[%clk 0:02:19]} 20. Qe3 {[%clk 0:01:51]}  Bf5 {[%clk 0:02:13]} 21. Re1 {[%clk 0:01:50]}  Re8 {[%clk 0:02:11]} 22. Qc1 {[%clk 0:01:40]}  Rxe1+ {[%clk 0:02:11]} 23. Qxe1 {[%clk 0:01:40]}  Bxh3 {[%clk 0:02:09]} 24. gxh3 {[%clk 0:01:22]}  Qxf3 {[%clk 0:02:09]} 25. Qe7 {[%clk 0:01:22]}  Qc6 {[%clk 0:01:53]} 26. h4 {[%clk 0:01:07]}  Qc5 {[%clk 0:01:43]} 27. Qd8+ {[%clk 0:00:43]}  Kh7 {[%clk 0:01:43]} 28. Bc2+ {[%clk 0:00:42]}  g6 {[%clk 0:01:37]} 29. Qe7 {[%clk 0:00:39]}  Qc4 {[%clk 0:01:30]} 30. h5 {[%clk 0:00:25]}  Qg4+ {[%clk 0:01:30]} 31. Kf1 {[%clk 0:00:25]}  Qh3+ {[%clk 0:01:29]} 32. Ke1 {[%clk 0:00:23]}  Qxh5 {[%clk 0:01:23]} 33. Qxc7 {[%clk 0:00:23]}  Qh1+ {[%clk 0:01:22]} 34. Ke2 {[%clk 0:00:22]}  Qc6 {[%clk 0:01:20]} 35. Qe7 {[%clk 0:00:20]}  Qc4+ {[%clk 0:01:16]} 36. Kd2 {[%clk 0:00:18]}  Qd5+ {[%clk 0:01:10]} 37. Kc1 {[%clk 0:00:16]}  Nc4 {[%clk 0:01:05]} 38. Bd3 {[%clk 0:00:11]}  Ne5 {[%clk 0:00:57]} 39. Be2 {[%clk 0:00:09]}  Qe4 {[%clk 0:00:54]} 40. Kd2 {[%clk 0:00:04]}  Nc4+ {[%clk 0:00:53]} 0-1


[Site "https://www.chess.com"]

[Event "Titled Tuesday Blitz November 14 Early 2023"]
[White "Buscar, Michael"]
[Black "Lehtosaari, Mauri"]
[WhiteFideId "2603616"]
[BlackFideId "501999"]
[WhiteElo "2283"]
[BlackElo "2526"]
[Result "0-1"]
[Round "3"]
[TimeControl "180+1"]
[Date "2023.11.14"]
[WhiteClock "0:01:07"]
[BlackClock "0:01:20"]
[Board "189"]

1. e4 {[%clk 0:02:59]}  d5 {[%clk 0:02:51]} 2. Nc3 {[%clk 0:02:57]}  dxe4 {[%clk 0:02:44]} 3. Nxe4 {[%clk 0:02:57]}  e6 {[%clk 0:02:43]} 4. Nf3 {[%clk 0:02:56]}  Nd7 {[%clk 0:02:41]} 5. d4 {[%clk 0:02:52]}  Ngf6 {[%clk 0:02:40]} 6. Bd3 {[%clk 0:02:51]}  Nxe4 {[%clk 0:02:39]} 7. Bxe4 {[%clk 0:02:52]}  Nf6 {[%clk 0:02:40]} 8. Bd3 {[%clk 0:02:50]}  c5 {[%clk 0:02:39]} 9. dxc5 {[%clk 0:02:43]}  Bxc5 {[%clk 0:02:36]} 10. Bg5 {[%clk 0:02:42]}  O-O {[%clk 0:02:34]} 11. O-O {[%clk 0:02:40]}  b6 {[%clk 0:02:32]} 12. Ne5 {[%clk 0:02:36]}  Bb7 {[%clk 0:02:26]} 13. Bxf6 {[%clk 0:02:27]}  Qxf6 {[%clk 0:02:21]} 14. Qh5 {[%clk 0:02:10]}  g6 {[%clk 0:02:17]} 15. Nd7 {[%clk 0:02:09]}  Qd4 {[%clk 0:01:50]} 16. Qh6 {[%clk 0:01:30]}  Qxd7 {[%clk 0:01:47]} 17. Rad1 {[%clk 0:01:29]}  Qe7 {[%clk 0:01:44]} 18. h4 {[%clk 0:01:27]}  Qf6 {[%clk 0:01:38]} 19. h5 {[%clk 0:01:22]}  Qg7 {[%clk 0:01:38]} 20. Qf4 {[%clk 0:01:20]}  gxh5 {[%clk 0:01:35]} 21. g3 {[%clk 0:01:20]}  Rad8 {[%clk 0:01:29]} 22. Kh2 {[%clk 0:01:18]}  Rd4 {[%clk 0:01:25]} 23. Qc1 {[%clk 0:01:09]}  Rh4+ {[%clk 0:01:20]} 24. gxh4 {[%clk 0:01:07]}  Qg2# {[%clk 0:01:20]} 0-1


[Site "https://www.chess.com"]

[Event "Titled Tuesday Blitz November 14 Early 2023"]
[White "Alahakoon, Isuru"]
[Black "Kubicka, Anna"]
[WhiteFideId "9900993"]
[BlackFideId "1152254"]
[WhiteElo "2274"]
[BlackElo "2511"]
[Result "0-1"]
[Round "3"]
[TimeControl "180+1"]
[Date "2023.11.14"]
[WhiteClock "0:00:00"]
[BlackClock "0:00:38"]
[Board "191"]

1. Nf3 {[%clk 0:00:07]}  Nf6 {[%clk 0:02:57]} 2. d4 {[%clk 0:00:07]}  c5 {[%clk 0:02:57]} 3. e3 {[%clk 0:00:06]}  e6 {[%clk 0:02:58]} 4. Nc3 {[%clk 0:00:05]}  Be7 {[%clk 0:02:58]} 5. Be2 {[%clk 0:00:05]}  O-O {[%clk 0:02:58]} 6. O-O {[%clk 0:00:06]}  Nc6 {[%clk 0:02:59]} 7. b3 {[%clk 0:00:06]}  b6 {[%clk 0:02:58]} 8. Bb2 {[%clk 0:00:06]}  Bb7 {[%clk 0:02:59]} 9. h3 {[%clk 0:00:06]}  Rc8 {[%clk 0:02:59]} 10. Re1 {[%clk 0:00:07]}  cxd4 {[%clk 0:02:54]} 11. exd4 {[%clk 0:00:06]}  Nb4 {[%clk 0:02:52]} 12. a3 {[%clk 0:00:07]}  Nc6 {[%clk 0:02:45]} 13. Bd3 {[%clk 0:00:07]}  h6 {[%clk 0:02:38]} 14. Ne2 {[%clk 0:00:06]}  d6 {[%clk 0:02:26]} 15. Ng3 {[%clk 0:00:06]}  d5 {[%clk 0:02:15]} 16. c4 {[%clk 0:00:06]}  Na5 {[%clk 0:02:07]} 17. cxd5 {[%clk 0:00:05]}  Bxd5 {[%clk 0:02:03]} 18. Ne5 {[%clk 0:00:05]}  Nxb3 {[%clk 0:01:53]} 19. Rb1 {[%clk 0:00:04]}  Na5 {[%clk 0:01:51]} 20. Qe2 {[%clk 0:00:04]}  Nc6 {[%clk 0:01:37]} 21. Ne4 {[%clk 0:00:04]}  Nxe4 {[%clk 0:01:32]} 22. Bxe4 {[%clk 0:00:05]}  Nxe5 {[%clk 0:01:21]} 23. dxe5 {[%clk 0:00:03]}  Bxe4 {[%clk 0:01:11]} 24. Qxe4 {[%clk 0:00:04]}  Qd2 {[%clk 0:01:02]} 25. Qe2 {[%clk 0:00:02]}  Rc2 {[%clk 0:00:56]} 26. Qxd2 {[%clk 0:00:01]}  Rxd2 {[%clk 0:00:57]} 27. Bc3 {[%clk 0:00:02]}  Rc2 {[%clk 0:00:54]} 28. Bb4 {[%clk 0:00:02]}  Bxb4 {[%clk 0:00:50]} 29. axb4 {[%clk 0:00:03]}  Rfc8 {[%clk 0:00:50]} 30. Ra1 {[%clk 0:00:03]}  R8c7 {[%clk 0:00:50]} 31. Ra3 {[%clk 0:00:03]}  Rb2 {[%clk 0:00:48]} 32. Re4 {[%clk 0:00:02]}  Rcc2 {[%clk 0:00:41]} 33. Rf4 {[%clk 0:00:00]}  Rc7 {[%clk 0:00:38]} 0-1


[Site "https://www.chess.com"]

[Event "Titled Tuesday Blitz November 14 Early 2023"]
[White "Shubenkova, Veronika"]
[Black "Rasmussen, Casper"]
[WhiteFideId "44124040"]
[BlackFideId "1402005"]
[WhiteElo "2507"]
[BlackElo "2272"]
[Result "1-0"]
[Round "3"]
[TimeControl "180+1"]
[Date "2023.11.14"]
[WhiteClock "0:01:04"]
[BlackClock "0:00:40"]
[Board "192"]

1. c4 {[%clk 0:03:00]}  c5 {[%clk 0:02:58]} 2. Nc3 {[%clk 0:03:00]}  Nc6 {[%clk 0:02:57]} 3. Nf3 {[%clk 0:03:00]}  Nf6 {[%clk 0:02:57]} 4. g3 {[%clk 0:02:58]}  d6 {[%clk 0:02:56]} 5. Bg2 {[%clk 0:02:58]}  g6 {[%clk 0:02:56]} 6. O-O {[%clk 0:02:58]}  Bg4 {[%clk 0:02:56]} 7. d3 {[%clk 0:02:58]}  Qd7 {[%clk 0:02:56]} 8. a3 {[%clk 0:02:55]}  Bh3 {[%clk 0:02:57]} 9. e4 {[%clk 0:02:53]}  h5 {[%clk 0:02:56]} 10. Bg5 {[%clk 0:02:53]}  Bg7 {[%clk 0:02:55]} 11. Qd2 {[%clk 0:02:53]}  h4 {[%clk 0:02:49]} 12. Nxh4 {[%clk 0:02:50]}  Nd4 {[%clk 0:02:41]} 13. Rae1 {[%clk 0:02:41]}  O-O-O {[%clk 0:02:29]} 14. Ne2 {[%clk 0:02:27]}  Rh5 {[%clk 0:01:50]} 15. Nxd4 {[%clk 0:02:26]}  cxd4 {[%clk 0:01:49]} 16. e5 {[%clk 0:02:21]}  dxe5 {[%clk 0:01:40]} 17. Rxe5 {[%clk 0:02:20]}  Rdh8 {[%clk 0:01:30]} 18. Rfe1 {[%clk 0:02:13]}  Bxg2 {[%clk 0:01:28]} 19. Kxg2 {[%clk 0:02:08]}  e6 {[%clk 0:01:26]} 20. Nf3 {[%clk 0:01:57]}  Ng4 {[%clk 0:01:23]} 21. Rc5+ {[%clk 0:01:57]}  Kb8 {[%clk 0:01:21]} 22. h4 {[%clk 0:01:57]}  f6 {[%clk 0:01:16]} 23. Bf4+ {[%clk 0:01:57]}  e5 {[%clk 0:01:15]} 24. Rd5 {[%clk 0:01:22]}  Qc7 {[%clk 0:01:13]} 25. Nxd4 {[%clk 0:01:18]}  exf4 {[%clk 0:01:10]} 26. Ne6 {[%clk 0:01:18]}  Qf7 {[%clk 0:00:59]} 27. Qxf4+ {[%clk 0:01:16]}  Ne5 {[%clk 0:00:58]} 28. Rexe5 {[%clk 0:01:13]}  g5 {[%clk 0:00:48]} 29. Rxg5+ {[%clk 0:01:10]}  Ka8 {[%clk 0:00:46]} 30. Rxh5 {[%clk 0:01:04]}  Qxe6 {[%clk 0:00:42]} 31. Rxh8+ {[%clk 0:01:04]}  Bxh8 {[%clk 0:00:40]} 32. Rd8+ {[%clk 0:01:04]} 1-0


[Site "https://www.chess.com"]

[Event "Titled Tuesday Blitz November 14 Early 2023"]
[White "Hajiyev, Kanan"]
[Black "Rodriguez Santiago, Jaime"]
[WhiteFideId "13404148"]
[BlackFideId "3100898"]
[WhiteElo "2493"]
[BlackElo "2257"]
[Result "1-0"]
[Round "3"]
[TimeControl "180+1"]
[Date "2023.11.14"]
[WhiteClock "0:01:12"]
[BlackClock "0:00:23"]
[Board "195"]

1. d4 {[%clk 0:02:44]}  Nf6 {[%clk 0:02:59]} 2. Nf3 {[%clk 0:02:43]}  d5 {[%clk 0:02:56]} 3. c4 {[%clk 0:02:44]}  e6 {[%clk 0:02:55]} 4. cxd5 {[%clk 0:02:45]}  exd5 {[%clk 0:02:49]} 5. Nc3 {[%clk 0:02:45]}  c6 {[%clk 0:02:47]} 6. Qc2 {[%clk 0:02:45]}  Bd6 {[%clk 0:02:47]} 7. Bg5 {[%clk 0:02:45]}  Nbd7 {[%clk 0:02:44]} 8. e3 {[%clk 0:02:45]}  O-O {[%clk 0:02:43]} 9. Bd3 {[%clk 0:02:44]}  h6 {[%clk 0:02:42]} 10. Bh4 {[%clk 0:02:45]}  Re8 {[%clk 0:02:42]} 11. O-O {[%clk 0:02:45]}  Qc7 {[%clk 0:02:31]} 12. Rfc1 {[%clk 0:02:43]}  Qb8 {[%clk 0:02:19]} 13. Rab1 {[%clk 0:02:42]}  b5 {[%clk 0:02:18]} 14. a4 {[%clk 0:02:42]}  a6 {[%clk 0:02:17]} 15. Bg3 {[%clk 0:02:37]}  Nb6 {[%clk 0:02:15]} 16. axb5 {[%clk 0:02:33]}  axb5 {[%clk 0:02:14]} 17. Ne2 {[%clk 0:02:32]}  Bd7 {[%clk 0:02:10]} 18. Ra1 {[%clk 0:02:31]}  Bxg3 {[%clk 0:02:00]} 19. Nxg3 {[%clk 0:02:28]}  Qd6 {[%clk 0:01:54]} 20. Ne5 {[%clk 0:02:25]}  Nc4 {[%clk 0:01:49]} 21. Nxd7 {[%clk 0:02:14]}  Nxd7 {[%clk 0:01:44]} 22. b3 {[%clk 0:02:07]}  Rxa1 {[%clk 0:01:40]} 23. Rxa1 {[%clk 0:02:06]}  Ncb6 {[%clk 0:01:40]} 24. h3 {[%clk 0:01:58]}  Rc8 {[%clk 0:01:39]} 25. Bh7+ {[%clk 0:01:51]}  Kf8 {[%clk 0:01:36]} 26. Bf5 {[%clk 0:01:51]}  Rc7 {[%clk 0:01:10]} 27. Bg4 {[%clk 0:01:45]}  g6 {[%clk 0:01:06]} 28. Be2 {[%clk 0:01:38]}  Kg7 {[%clk 0:01:01]} 29. Rc1 {[%clk 0:01:37]}  Rc8 {[%clk 0:00:59]} 30. Bg4 {[%clk 0:01:35]}  Rc7 {[%clk 0:00:54]} 31. h4 {[%clk 0:01:35]}  Nf6 {[%clk 0:00:33]} 32. Be2 {[%clk 0:01:35]}  Rc8 {[%clk 0:00:32]} 33. h5 {[%clk 0:01:30]}  Qe6 {[%clk 0:00:31]} 34. hxg6 {[%clk 0:01:23]}  fxg6 {[%clk 0:00:32]} 35. Bd3 {[%clk 0:01:22]}  Ne8 {[%clk 0:00:30]} 36. Ne2 {[%clk 0:01:21]}  Nd6 {[%clk 0:00:28]} 37. Nf4 {[%clk 0:01:21]}  Qg4 {[%clk 0:00:26]} 38. Bxg6 {[%clk 0:01:19]}  Rg8 {[%clk 0:00:23]} 39. Qxc6 {[%clk 0:01:12]} 1-0


[Site "https://www.chess.com"]

[Event "Titled Tuesday Blitz November 14 Early 2023"]
[White "Urbina Perez, Juan Antonio"]
[Black "Quirke, Jeffrey"]
[WhiteFideId "2217368"]
[BlackFideId "2013029"]
[WhiteElo "2471"]
[BlackElo "2253"]
[Result "0-1"]
[Round "3"]
[TimeControl "180+1"]
[Date "2023.11.14"]
[WhiteClock "0:00:21"]
[BlackClock "0:00:06"]
[Board "196"]

1. e4 {[%clk 0:03:00]}  e6 {[%clk 0:02:59]} 2. d4 {[%clk 0:02:59]}  d5 {[%clk 0:02:59]} 3. Nd2 {[%clk 0:03:00]}  c5 {[%clk 0:02:59]} 4. exd5 {[%clk 0:02:59]}  Qxd5 {[%clk 0:02:59]} 5. Bc4 {[%clk 0:02:56]}  Qxg2 {[%clk 0:02:55]} 6. Qf3 {[%clk 0:02:55]}  Qxf3 {[%clk 0:02:54]} 7. Ngxf3 {[%clk 0:02:56]}  Nc6 {[%clk 0:02:50]} 8. d5 {[%clk 0:02:55]}  exd5 {[%clk 0:02:48]} 9. Bxd5 {[%clk 0:02:56]}  Nf6 {[%clk 0:02:36]} 10. Bxc6+ {[%clk 0:02:54]}  bxc6 {[%clk 0:02:36]} 11. Nc4 {[%clk 0:02:53]}  Be6 {[%clk 0:02:25]} 12. Nfe5 {[%clk 0:02:47]}  Bd5 {[%clk 0:02:16]} 13. Rg1 {[%clk 0:02:44]}  g6 {[%clk 0:02:15]} 14. Bf4 {[%clk 0:02:25]}  Nh5 {[%clk 0:01:54]} 15. Be3 {[%clk 0:01:45]}  f6 {[%clk 0:01:49]} 16. O-O-O {[%clk 0:01:38]}  fxe5 {[%clk 0:01:46]} 17. Nxe5 {[%clk 0:01:39]}  O-O-O {[%clk 0:01:28]} 18. c4 {[%clk 0:01:37]}  Be6 {[%clk 0:01:17]} 19. Nxc6 {[%clk 0:01:37]}  Rxd1+ {[%clk 0:01:16]} 20. Rxd1 {[%clk 0:01:38]}  Bxc4 {[%clk 0:00:45]} 21. b3 {[%clk 0:01:27]}  Kc7 {[%clk 0:00:34]} 22. Ne5 {[%clk 0:00:59]}  Be6 {[%clk 0:00:33]} 23. Nf3 {[%clk 0:00:48]}  Be7 {[%clk 0:00:25]} 24. Nd2 {[%clk 0:00:41]}  Rd8 {[%clk 0:00:20]} 25. Re1 {[%clk 0:00:38]}  Bf5 {[%clk 0:00:18]} 26. Nc4 {[%clk 0:00:34]}  Bf6 {[%clk 0:00:12]} 27. Bxc5 {[%clk 0:00:31]}  Nf4 {[%clk 0:00:07]} 28. Bd6+ {[%clk 0:00:21]}  Rxd6 {[%clk 0:00:07]} 29. Nxd6 {[%clk 0:00:22]}  Kxd6 {[%clk 0:00:07]} 30. Re8 {[%clk 0:00:23]}  Nd3+ {[%clk 0:00:06]} 31. Kd2 {[%clk 0:00:23]}  Bg5+ {[%clk 0:00:04]} 32. Kc3 {[%clk 0:00:22]}  Nxf2 {[%clk 0:00:05]} 33. Rh8 {[%clk 0:00:21]}  Ne4+ {[%clk 0:00:05]} 34. Kb4 {[%clk 0:00:20]}  h5 {[%clk 0:00:06]} 35. Ra8 {[%clk 0:00:19]}  Bd2+ {[%clk 0:00:06]} 36. Ka3 {[%clk 0:00:17]}  Be3 {[%clk 0:00:07]} 37. Rd8+ {[%clk 0:00:16]}  Ke5 {[%clk 0:00:08]} 38. Re8+ {[%clk 0:00:16]}  Kf4 {[%clk 0:00:08]} 39. b4 {[%clk 0:00:16]}  g5 {[%clk 0:00:09]} 40. Kb3 {[%clk 0:00:17]}  g4 {[%clk 0:00:09]} 41. a4 {[%clk 0:00:17]}  h4 {[%clk 0:00:09]} 42. b5 {[%clk 0:00:17]}  g3 {[%clk 0:00:10]} 43. hxg3+ {[%clk 0:00:17]}  hxg3 {[%clk 0:00:11]} 44. Rg8 {[%clk 0:00:16]}  Bg4 {[%clk 0:00:11]} 45. a5 {[%clk 0:00:17]}  g2 {[%clk 0:00:11]} 46. b6 {[%clk 0:00:18]}  axb6 {[%clk 0:00:10]} 47. a6 {[%clk 0:00:18]}  b5 {[%clk 0:00:10]} 48. a7 {[%clk 0:00:19]}  Bxa7 {[%clk 0:00:09]} 49. Rf8+ {[%clk 0:00:19]}  Kg3 {[%clk 0:00:09]} 50. Re8 {[%clk 0:00:18]}  g1=Q {[%clk 0:00:09]} 51. Rxe4 {[%clk 0:00:18]}  Qb1+ {[%clk 0:00:08]} 52. Ka3 {[%clk 0:00:18]}  Qxe4 {[%clk 0:00:09]} 53. Kb2 {[%clk 0:00:18]}  Bd4+ {[%clk 0:00:06]} 54. Ka2 {[%clk 0:00:19]}  Qc2+ {[%clk 0:00:06]} 55. Ka3 {[%clk 0:00:20]}  Qc3+ {[%clk 0:00:05]} 56. Ka2 {[%clk 0:00:21]}  Qb2# {[%clk 0:00:06]} 0-1


[Site "https://www.chess.com"]

[Event "Titled Tuesday Blitz November 14 Early 2023"]
[White "Omariev, Maksim"]
[Black "Dodaro, Mattia"]
[WhiteFideId "4193423"]
[BlackFideId "28583400"]
[WhiteElo "2468"]
[BlackElo "2248"]
[Result "1-0"]
[Round "3"]
[TimeControl "180+1"]
[Date "2023.11.14"]
[WhiteClock "0:01:07"]
[BlackClock "0:00:52"]
[Board "197"]

1. g4 {[%clk 0:02:27]}  h5 {[%clk 0:02:54]} 2. g5 {[%clk 0:02:27]}  d5 {[%clk 0:02:53]} 3. d4 {[%clk 0:02:26]}  Bf5 {[%clk 0:02:52]} 4. Bg2 {[%clk 0:02:25]}  h4 {[%clk 0:02:52]} 5. h3 {[%clk 0:02:21]}  e6 {[%clk 0:02:52]} 6. c4 {[%clk 0:02:21]}  Be7 {[%clk 0:02:51]} 7. Nc3 {[%clk 0:02:17]}  Bxg5 {[%clk 0:02:48]} 8. cxd5 {[%clk 0:02:15]}  Bxc1 {[%clk 0:02:48]} 9. Rxc1 {[%clk 0:02:16]}  exd5 {[%clk 0:02:46]} 10. Qb3 {[%clk 0:02:01]}  c6 {[%clk 0:01:49]} 11. Qxb7 {[%clk 0:02:00]}  Qb6 {[%clk 0:01:48]} 12. Qxa8 {[%clk 0:01:47]}  Qxb2 {[%clk 0:01:43]} 13. Kd1 {[%clk 0:01:45]}  Qb6 {[%clk 0:01:31]} 14. Nf3 {[%clk 0:01:15]}  Ne7 {[%clk 0:01:25]} 15. e4 {[%clk 0:01:09]}  dxe4 {[%clk 0:00:52]} 16. Rb1 {[%clk 0:01:07]} 1-0


[Site "https://www.chess.com"]